bitfinex/quotes_SOLUSD_20230402
["timestamp","ask_amount","ask_price","bid_price","bid_amount"]
[1680442828437,33.531,20.876,20.849,27.0]
[1680442829239,7.17217194,20.873,20.849,27.0]
[1680442830831,7.17217194,20.873,20.849,34.17217194]
[1680442831025,116.6302,20.875,20.85,51.40247479]
[1680442831339,10.0,20.874,20.851,34.17217194]
[1680442831540,10.0,20.874,20.852,10.0]
[1680442831736,10.0,20.874,20.854,10.0]
[1680442832343,10.0,20.874,20.854,17.17217194]
[1680442833246,10.0,20.865,20.854,7.17217194]
[1680442833542,10.0,20.865,20.852,10.0]
[1680442833738,10.0,20.865,20.86,80.0]
[1680442833944,17.0,20.866,20.86,80.0]
[1680442834245,27.0,20.866,20.86,80.0]
[1680442836149,10.0,20.865,20.86,80.0]
[1680442836349,10.0,20.863,20.86,80.0]
[1680442837648,17.0,20.864,20.86,80.0]
[1680442840031,10.0,20.864,20.86,80.0]
[1680442840246,17.0,20.863,20.86,80.0]
[1680442842432,10.0,20.864,20.86,80.0]
[1680442842633,17.0,20.863,20.86,80.0]
[1680442845659,10.0,20.866,20.86,80.0]
[1680442845660,10.0,20.864,20.86,80.0]
[1680442845838,17.0,20.863,20.86,80.0]
[1680442846254,16.773,20.867,20.86,80.0]
[1680442851459,10.0,20.865,20.86,80.0]
[1680442854158,17.0,20.866,20.86,80.0]
[1680442855051,10.0,20.865,20.86,80.0]
[1680442855250,10.0,20.863,20.86,80.0]
[1680442855847,10.0,20.865,20.86,80.0]
[1680442856151,17.0,20.864,20.86,80.0]
[1680442861456,10.0,20.863,20.86,80.0]
[1680442861661,10.0,20.861,20.86,80.0]
[1680442861963,27.0,20.861,20.86,80.0]
[1680442865456,10.0,20.863,20.86,80.0]
[1680442870168,17.0,20.864,20.86,80.0]
[1680442873169,17.0,20.864,20.851,10.0]
[1680442873466,10.0,20.863,20.851,10.0]
[1680442873858,10.0,20.863,20.85,80.0]
[1680442874848,10.0,20.861,20.85,80.0]
[1680442877256,17.0,20.86,20.85,80.0]
[1680442877566,10.0,20.859,20.85,80.0]
[1680442877761,10.0,20.857,20.85,80.0]
[1680442877957,10.0,20.855,20.85,80.0]
[1680442878365,10.0,20.853,20.85,80.0]
[1680442878969,17.0,20.854,20.85,80.0]
[1680442879472,88.32715801,20.869,20.85,80.0]
[1680442879684,17.0,20.86,20.85,80.0]
[1680442879866,88.32715801,20.869,20.85,80.0]
[1680442882973,10.0,20.861,20.85,80.0]
[1680442883668,10.0,20.866,20.851,10.0]
[1680442887182,10.0,20.866,20.85,80.0]
[1680442888876,10.0,20.863,20.85,80.0]
[1680442889075,17.0,20.862,20.85,80.0]
[1680442889270,10.0,20.861,20.85,80.0]
[1680442889483,10.0,20.859,20.85,80.0]
[1680442889970,17.0,20.858,20.85,80.0]
[1680442890185,10.0,20.857,20.85,80.0]
[1680442890370,10.0,20.855,20.85,80.0]
[1680442891888,17.0,20.856,20.85,80.0]
[1680442892584,10.0,20.859,20.85,80.0]
[1680442892886,122.2328,20.865,20.85,80.0]
[1680442893081,17.0,20.862,20.85,80.0]
[1680442894288,10.0,20.865,20.85,80.0]
[1680442895369,10.0,20.861,20.85,80.0]
[1680442896371,134.8818,20.867,20.85,87.17217194]
[1680442896577,134.8818,20.867,20.851,10.0]
[1680442896884,134.8818,20.867,20.851,17.17217194]
[1680442897797,10.0,20.864,20.851,17.17217194]
[1680442899291,10.0,20.864,20.851,7.17217194]
[1680442899487,10.0,20.864,20.85,80.0]
[1680442901393,10.0,20.862,20.85,80.0]
[1680442903998,17.0,20.863,20.85,80.0]
[1680442904293,134.8818,20.867,20.851,10.0]
[1680442904494,10.0,20.864,20.851,10.0]
[1680442906592,17.0,20.865,20.851,10.0]
[1680442907689,134.8818,20.867,20.851,10.0]
[1680442907885,16.773,20.867,20.851,10.0]
[1680442908196,16.773,20.867,20.853,10.0]
[1680442912002,16.773,20.867,20.852,17.0]
[1680442915101,16.773,20.867,20.854,10.0]
[1680442915494,16.773,20.867,20.854,17.17217194]
[1680442917306,16.773,20.867,20.854,7.17217194]
[1680442919007,10.0,20.865,20.854,7.17217194]
[1680442921915,27.0,20.866,20.851,10.0]
[1680442922508,27.0,20.866,20.853,10.0]
[1680442922910,27.0,20.866,20.853,17.17217194]
[1680442923612,27.0,20.866,20.853,7.17217194]
[1680442923813,10.0,20.865,20.853,7.17217194]
[1680442925415,17.0,20.864,20.85,80.0]
[1680442925606,10.0,20.863,20.85,80.0]
[1680442925795,10.0,20.861,20.85,80.0]
[1680442928695,10.0,20.859,20.85,80.0]
[1680442929106,10.0,20.857,20.85,80.0]
[1680442929305,17.0,20.856,20.85,80.0]
[1680442929621,10.0,20.855,20.85,80.0]
[1680442929802,10.0,20.853,20.85,80.0]
[1680442930306,17.0,20.854,20.85,80.0]
[1680442935619,10.0,20.853,20.85,80.0]
[1680442935820,17.0,20.852,20.85,80.0]
[1680442936122,10.0,20.851,20.85,80.0]
[1680442936338,27.0,20.851,20.85,80.0]
[1680442937441,10.0,20.85,20.846,6.79070257]
[1680442937732,10.0,20.848,20.835,6.79390325]
[1680442938104,17.0,20.847,20.835,6.79390325]
[1680442938330,10.0,20.846,20.835,6.79390325]
[1680442938628,10.0,20.844,20.835,6.79390325]
[1680442938832,17.0,20.843,20.835,6.79390325]
[1680442939019,10.0,20.842,20.835,6.79390325]
[1680442942737,10.0,20.844,20.835,6.79390325]
[1680442945729,71.57910819,20.859,20.835,6.79390325]
[1680442946628,10.0,20.854,20.835,6.79390325]
[1680442950333,10.0,20.854,20.837,10.0]
[1680442950536,10.0,20.854,20.838,23.79292514]
[1680442950719,10.0,20.854,20.839,16.79259917]
[1680442950919,125.9458,20.855,20.84,6.79227323]
[1680442952729,17.17217194,20.864,20.842,10.0]
[1680442952930,10.0,20.862,20.843,6.7912956]
[1680442955533,10.0,20.855,20.843,6.7912956]
[1680442972437,10.0,20.853,20.843,6.7912956]
[1680442979248,10.0,20.851,20.843,6.7912956]
[1680442979758,10.0,20.849,20.843,6.7912956]
[1680442979937,17.0,20.848,20.843,6.7912956]
[1680442980138,10.0,20.847,20.843,6.7912956]
[1680442980337,10.0,20.845,20.829,10.0]
[1680442980955,10.0,20.845,20.831,10.0]
[1680442981153,10.0,20.845,20.832,26.79463922]
[1680442981359,10.0,20.845,20.833,6.79431307]
[1680442981663,10.0,20.845,20.834,20.0]
[1680442981842,10.0,20.845,20.835,6.79366087]
[1680442982044,10.0,20.845,20.836,20.0]
[1680442982245,10.0,20.845,20.837,6.7930088]
[1680442985668,17.0,20.846,20.837,6.7930088]
[1680442987271,10.0,20.851,20.837,6.7930088]
[1680442988351,7.17217194,20.864,20.837,6.7930088]
[1680442988557,7.17217194,20.864,20.839,10.0]
[1680442988757,7.17217194,20.864,20.84,6.79203092]
[1680442988957,10.0,20.853,20.84,6.79203092]
[1680442996768,10.0,20.851,20.84,6.79203092]
[1680442996950,10.0,20.849,20.84,6.79203092]
[1680442997470,10.0,20.847,20.84,6.79203092]
[1680442999767,10.0,20.845,20.84,6.79203092]
[1680442999972,10.0,20.843,20.84,6.79203092]
[1680443001556,10.0,20.845,20.84,6.79203092]
[1680443002164,10.0,20.843,20.84,6.79203092]
[1680443006365,10.0,20.841,20.84,6.79203092]
[1680443006570,27.0,20.841,20.828,6.79586474]
[1680443006764,10.0,20.841,20.828,6.79586474]
[1680443006970,10.0,20.839,20.828,6.79586474]
[1680443007157,17.0,20.838,20.828,6.79586474]
[1680443007359,10.0,20.837,20.828,6.79586474]
[1680443012579,17.0,20.838,20.828,6.79586474]
[1680443013088,10.0,20.841,20.828,6.79586474]
[1680443017591,111.365,20.842,20.829,17.0]
[1680443017764,111.365,20.842,20.83,16.79521223]
[1680443017965,111.365,20.842,20.831,6.79488603]
[1680443049301,27.0,20.841,20.831,6.79488603]
[1680443049480,10.0,20.84,20.831,6.79488603]
[1680443059099,10.0,20.838,20.831,6.79488603]
[1680443068703,10.0,20.84,20.831,6.79488603]
[1680443068897,27.0,20.841,20.831,6.79488603]
[1680443069507,10.0,20.84,20.831,6.79488603]
[1680443077127,10.0,20.838,20.831,6.79488603]
[1680443081331,10.0,20.84,20.831,6.79488603]
[1680443081532,10.0,20.838,20.831,6.79488603]
[1680443083019,10.0,20.84,20.831,6.79488603]
[1680443083218,10.0,20.838,20.831,6.79488603]
[1680443087642,10.0,20.84,20.831,6.79488603]
[1680443087839,27.0,20.841,20.831,6.79488603]
[1680443088140,10.0,20.84,20.831,6.79488603]
[1680443093749,111.365,20.842,20.831,6.79488603]
[1680443101765,10.0,20.84,20.831,6.79488603]
[1680443104560,17.0,20.841,20.831,6.79488603]
[1680443104745,111.365,20.842,20.831,6.79488603]
[1680443105045,10.0,20.841,20.831,6.79488603]
[1680443109271,10.0,20.841,20.831,6.79488603]
[1680443109945,10.0,20.839,20.831,6.79488603]
[1680443110560,17.0,20.84,20.831,6.79488603]
[1680443110763,10.0,20.841,20.831,6.79488603]
[1680443112259,111.365,20.842,20.831,6.79488603]
[1680443112463,10.0,20.847,20.831,6.79488603]
[1680443113766,10.0,20.845,20.831,6.79488603]
[1680443115650,10.0,20.845,20.833,10.0]
[1680443115845,10.0,20.851,20.834,43.7939076]
[1680443116050,10.0,20.851,20.835,16.79358151]
[1680443116266,10.0,20.851,20.837,10.0]
[1680443116473,115.7226,20.854,20.838,6.79260346]
[1680443119072,10.0,20.85,20.838,6.79260346]
[1680443122266,17.0,20.851,20.838,6.79260346]
[1680443122579,115.7226,20.854,20.838,6.79260346]
[1680443126173,10.0,20.851,20.838,6.79260346]
[1680443127577,115.7226,20.854,20.84,10.0]
[1680443127760,115.7226,20.854,20.841,6.79162568]
[1680443132077,10.0,20.851,20.841,6.79162568]
[1680443132878,10.0,20.849,20.841,6.79162568]
[1680443134284,17.0,20.85,20.841,6.79162568]
[1680443135282,10.0,20.85,20.841,6.79162568]
[1680443136566,10.0,20.852,20.841,6.79162568]
[1680443136767,16.784,20.853,20.841,6.79162568]
[1680443139779,10.0,20.851,20.841,6.79162568]
[1680443141584,27.0,20.852,20.841,6.79162568]
[1680443141785,17.0,20.852,20.841,6.79162568]
[1680443142083,16.784,20.853,20.841,6.79162568]
[1680443151888,26.784,20.853,20.841,6.79162568]
[1680443155696,10.0,20.851,20.841,6.79162568]
[1680443155897,10.0,20.849,20.841,6.79162568]
[1680443157194,10.0,20.851,20.841,6.79162568]
[1680443158719,10.0,20.852,20.841,6.79162568]
[1680443161209,16.784,20.853,20.841,6.79162568]
[1680443163422,26.784,20.853,20.841,6.79162568]
[1680443163724,16.784,20.853,20.841,6.79162568]
[1680443167608,16.784,20.853,20.843,10.0]
[1680443167808,16.784,20.853,20.844,6.79064819]
[1680443173422,16.784,20.853,20.845,20.0]
[1680443173729,16.784,20.853,20.846,10.0]
[1680443173908,16.784,20.853,20.847,17.0]
[1680443174109,16.784,20.853,20.848,10.0]
[1680443174313,110.277,20.863,20.849,17.0]
[1680443174523,16.784,20.853,20.849,17.0]
[1680443174724,16.784,20.853,20.85,10.0]
[1680443174933,10.0,20.866,20.851,17.0]
[1680443175135,10.0,20.866,20.852,10.0]
[1680443175314,10.0,20.866,20.854,10.0]
[1680443175509,10.0,20.866,20.855,17.0]
[1680443175926,10.0,20.866,20.854,10.0]
[1680443176129,10.0,20.866,20.855,17.0]
[1680443176833,10.0,20.866,20.853,17.0]
[1680443177927,113.2267,20.867,20.854,20.0]
[1680443178114,113.2267,20.867,20.856,10.0]
[1680443178321,113.2267,20.867,20.857,37.0]
[1680443178524,113.2267,20.867,20.858,10.0]
[1680443178734,113.2267,20.867,20.858,27.0]
[1680443178930,113.2267,20.867,20.858,47.0]
[1680443179128,113.2267,20.867,20.858,37.0]
[1680443180234,10.0,20.876,20.858,37.0]
[1680443189323,10.0,20.876,20.858,20.0]
[1680443189629,10.0,20.858,20.845,121.0264]
[1680443189826,10.0,20.858,20.846,30.0]
[1680443190039,10.0,20.858,20.847,10.0]
[1680443190441,10.0,20.876,20.847,10.0]
[1680443190733,10.0,20.876,20.848,30.0]
[1680443190931,10.0,20.876,20.849,10.0]
[1680443191835,10.0,20.876,20.851,10.0]
[1680443192434,10.0,20.876,20.852,17.0]
[1680443195528,10.0,20.876,20.853,10.0]
[1680443195725,10.0,20.876,20.854,17.0]
[1680443196044,10.0,20.876,20.856,10.0]
[1680443196545,10.0,20.876,20.857,20.0]
[1680443196928,10.0,20.876,20.855,20.0]
[1680443197130,10.0,20.876,20.856,27.0]
[1680443197328,10.0,20.876,20.857,20.0]
[1680443199937,10.0,20.876,20.858,17.0]
[1680443200139,10.0,20.876,20.858,37.0]
[1680443201142,10.0,20.876,20.858,20.0]
[1680443201339,10.0,20.876,20.855,10.0]
[1680443201648,10.0,20.876,20.856,37.0]
[1680443203855,10.0,20.876,20.857,10.0]
[1680443204048,10.0,20.876,20.858,37.0]
[1680443212551,10.0,20.876,20.858,20.0]
[1680443212737,10.0,20.876,20.857,10.0]
[1680443212938,10.0,20.876,20.858,20.0]
[1680443213135,10.0,20.876,20.858,67.17217194]
[1680443213338,10.0,20.876,20.858,117.39258562]
[1680443213954,10.0,20.876,20.858,134.39258562]
[1680443214443,28.559,20.859,20.858,134.39258562]
[1680443214847,33.559,20.859,20.858,134.39258562]
[1680443215354,33.559,20.859,20.858,124.39258562]
[1680443215657,10.0,20.876,20.859,10.0]
[1680443215844,86.5939,20.878,20.861,10.0]
[1680443216055,86.5939,20.878,20.863,10.0]
[1680443216348,86.5939,20.878,20.865,10.0]
[1680443216538,86.5939,20.878,20.866,20.0]
[1680443216741,86.5939,20.878,20.867,27.0]
[1680443216952,86.5939,20.878,20.869,10.0]
[1680443217152,86.5939,20.878,20.87,17.0]
[1680443218248,86.5939,20.878,20.869,17.0]
[1680443218759,86.5939,20.878,20.868,20.0]
[1680443219055,86.5939,20.878,20.867,10.0]
[1680443219370,204.72,20.878,20.868,20.0]
[1680443220043,204.72,20.878,20.867,10.0]
[1680443220241,204.72,20.878,20.868,20.0]
[1680443220849,10.0,20.877,20.868,20.0]
[1680443221047,10.0,20.877,20.865,10.0]
[1680443221251,10.0,20.877,20.866,20.0]
[1680443221455,10.0,20.877,20.866,37.0]
[1680443223655,86.5939,20.878,20.866,37.0]
[1680443227472,10.0,20.877,20.866,20.0]
[1680443227670,10.0,20.877,20.867,17.0]
[1680443227967,10.0,20.877,20.868,20.0]
[1680443228469,10.0,20.877,20.867,20.0]
[1680443234471,10.0,20.877,20.865,10.0]
[1680443234767,10.0,20.877,20.866,20.0]
[1680443235374,10.0,20.877,20.856,126.1815]
[1680443235375,17.0,20.876,20.859,30.0]
[1680443235553,10.0,20.875,20.859,30.0]
[1680443235759,10.0,20.873,20.851,10.0]
[1680443236064,10.0,20.873,20.854,10.0]
[1680443236880,10.0,20.873,20.856,10.0]
[1680443237055,10.0,20.873,20.858,10.0]
[1680443237257,10.0,20.873,20.859,20.0]
[1680443237458,10.0,20.873,20.86,10.0]
[1680443237862,10.0,20.873,20.861,17.0]
[1680443238061,10.0,20.873,20.862,10.0]
[1680443238260,10.0,20.873,20.863,17.0]
[1680443238881,10.0,20.873,20.862,10.0]
[1680443239076,112.042,20.874,20.864,10.0]
[1680443239278,112.042,20.874,20.864,30.0]
[1680443239480,112.042,20.874,20.866,10.0]
[1680443239780,112.042,20.874,20.867,37.0]
[1680443244377,112.042,20.874,20.867,20.0]
[1680443244586,112.042,20.874,20.866,10.0]
[1680443244777,112.042,20.874,20.867,20.0]
[1680443245462,112.042,20.874,20.866,10.0]
[1680443245658,112.042,20.874,20.867,20.0]
[1680443246485,112.042,20.874,20.866,10.0]
[1680443246776,112.042,20.874,20.867,20.0]
[1680443247472,112.042,20.874,20.866,10.0]
[1680443247669,112.042,20.874,20.867,20.0]
[1680443247979,112.042,20.874,20.867,17.5]
[1680443249183,112.042,20.874,20.864,27.17217194]
[1680443249483,112.042,20.874,20.866,10.0]
[1680443249666,112.042,20.874,20.867,17.0]
[1680443250368,112.042,20.874,20.868,20.0]
[1680443251694,112.042,20.874,20.868,17.5]
[1680443255990,112.042,20.874,20.868,15.0]
[1680443259895,112.042,20.874,20.868,12.5]
[1680443262901,16.763,20.879,20.868,12.5]
[1680443263074,16.763,20.879,20.869,24.17217194]
[1680443263492,16.763,20.879,20.87,17.17217194]
[1680443263972,16.763,20.879,20.868,12.5]
[1680443264174,16.763,20.879,20.866,27.17217194]
[1680443264493,16.763,20.879,20.867,17.0]
[1680443264793,16.763,20.879,20.868,20.0]
[1680443265991,16.763,20.879,20.867,20.0]
[1680443266396,16.763,20.879,20.867,27.17217194]
[1680443266994,16.763,20.879,20.869,10.0]
[1680443267489,16.763,20.879,20.869,17.17217194]
[1680443267682,16.763,20.879,20.869,7.17217194]
[1680443268080,16.763,20.879,20.87,17.0]
[1680443268475,16.763,20.879,20.871,7.17217194]
[1680443269095,16.763,20.879,20.872,17.0]
[1680443271378,16.763,20.879,20.871,7.17217194]
[1680443273990,16.763,20.879,20.872,17.0]
[1680443275476,16.763,20.879,20.871,7.17217194]
[1680443275972,16.763,20.879,20.872,17.0]
[1680443276176,16.763,20.879,20.871,7.17217194]
[1680443279283,16.763,20.879,20.872,17.0]
[1680443286086,16.763,20.879,20.871,7.17217194]
[1680443286506,16.763,20.879,20.867,20.0]
[1680443286712,16.763,20.879,20.869,10.0]
[1680443287009,16.763,20.879,20.87,24.17217194]
[1680443287393,16.763,20.879,20.871,7.17217194]
[1680443288903,10.0,20.877,20.871,7.17217194]
[1680443289111,10.0,20.877,20.866,20.0]
[1680443289298,10.0,20.877,20.866,17.17217194]
[1680443289612,10.0,20.877,20.867,20.0]
[1680443289999,10.0,20.877,20.865,20.0]
[1680443291205,10.0,20.877,20.865,27.17217194]
[1680443297305,10.0,20.877,20.858,50.22041368]
[1680443297630,10.0,20.875,20.848,57.92]
[1680443297803,17.0,20.874,20.851,10.0]
[1680443298009,10.0,20.873,20.851,10.0]
[1680443298408,10.0,20.873,20.851,57.92]
[1680443298721,10.0,20.873,20.855,7.17217194]
[1680443299405,10.0,20.873,20.855,55.09217194]
[1680443299604,10.0,20.873,20.855,7.17217194]
[1680443300815,10.0,20.871,20.857,10.0]
[1680443301006,10.0,20.871,20.858,20.0]
[1680443301208,10.0,20.871,20.858,27.17217194]
[1680443301601,10.0,20.871,20.859,7.17217194]
[1680443303611,10.0,20.871,20.858,20.0]
[1680443303906,10.0,20.869,20.851,20.0]
[1680443304208,10.0,20.867,20.851,20.0]
[1680443304604,10.0,20.867,20.851,27.17217194]
[1680443305010,10.0,20.867,20.849,43.40446707]
[1680443305223,10.0,20.867,20.845,115.0458]
[1680443305224,17.0,20.866,20.845,115.0458]
[1680443305425,10.0,20.865,20.846,50.0]
[1680443305720,10.0,20.865,20.847,10.0]
[1680443306029,10.0,20.865,20.846,57.17217194]
[1680443306212,10.0,20.863,20.847,7.17217194]
[1680443306608,10.0,20.861,20.847,7.17217194]
[1680443307928,10.0,20.859,20.847,7.17217194]
[1680443309424,10.0,20.857,20.842,43.40446707]
[1680443309733,10.0,20.857,20.843,7.17217194]
[1680443309908,10.0,20.855,20.843,7.17217194]
[1680443319005,10.0,20.855,20.838,6.79228549]
[1680443319209,10.0,20.853,20.838,6.79228549]
[1680443319410,17.0,20.852,20.838,6.79228549]
[1680443319622,10.0,20.851,20.838,6.79228549]
[1680443319826,17.0,20.85,20.838,6.79228549]
[1680443320030,10.0,20.849,20.838,6.79228549]
[1680443320208,10.0,20.847,20.838,6.79228549]
[1680443327724,10.0,20.847,20.839,19.184073]
[1680443328621,10.0,20.845,20.839,19.184073]
[1680443329922,10.0,20.843,20.839,19.184073]
[1680443330818,10.0,20.845,20.839,19.184073]
[1680443333019,10.0,20.847,20.839,19.184073]
[1680443333236,10.0,20.845,20.839,19.184073]
[1680443334332,219.68,20.856,20.839,19.184073]
[1680443339336,10.0,20.849,20.839,19.184073]
[1680443341321,10.0,20.847,20.84,6.79163364]
[1680443341516,10.0,20.845,20.84,6.79163364]
[1680443342935,10.0,20.847,20.84,6.79163364]
[1680443343817,10.0,20.849,20.84,6.79163364]
[1680443344142,257.9853,20.867,20.84,6.79163364]
[1680443345141,61.70975847,20.862,20.84,6.79163364]
[1680443345445,10.0,20.851,20.84,6.79163364]
[1680443350443,10.0,20.849,20.84,6.79163364]
[1680443350629,10.0,20.847,20.84,6.79163364]
[1680443352443,10.0,20.851,20.84,6.79163364]
[1680443352649,10.0,20.849,20.84,6.79163364]
[1680443353733,10.0,20.847,20.84,6.79163364]
[1680443354234,10.0,20.845,20.84,6.79163364]
[1680443356932,10.0,20.847,20.84,6.79163364]
[1680443357544,219.68,20.856,20.84,6.79163364]
[1680443360554,219.68,20.856,20.84,13.96380558]
[1680443360738,219.68,20.856,20.841,23.79130776]
[1680443363953,219.68,20.856,20.842,6.79098192]
[1680443374861,219.68,20.856,20.839,10.0]
[1680443375059,219.68,20.856,20.84,6.79163364]
[1680443381364,10.0,20.853,20.84,6.79163364]
[1680443381667,10.0,20.851,20.84,6.79163364]
[1680443381960,10.0,20.849,20.84,6.79163364]
[1680443384255,10.0,20.851,20.84,6.79163364]
[1680443391970,10.0,20.849,20.84,6.79163364]
[1680443392854,10.0,20.847,20.84,6.79163364]
[1680443404460,10.0,20.845,20.84,6.79163364]
[1680443406077,10.0,20.847,20.84,6.79163364]
[1680443406280,16.78,20.859,20.84,6.79163364]
[1680443411384,10.0,20.851,20.84,6.79163364]
[1680443413068,16.78,20.859,20.84,6.79163364]
[1680443416571,10.0,20.851,20.84,6.79163364]
[1680443421177,10.0,20.849,20.84,6.79163364]
[1680443421381,10.0,20.847,20.84,6.79163364]
[1680443426085,9.8859884,20.847,20.84,6.79163364]
[1680443433791,10.0,20.849,20.84,6.79163364]
[1680443439906,10.0,20.851,20.84,6.79163364]
[1680443440099,10.0,20.849,20.84,6.79163364]
[1680443443807,10.0,20.849,20.828,16.79554662]
[1680443444004,10.0,20.849,20.83,10.0]
[1680443444204,10.0,20.849,20.832,10.0]
[1680443444396,10.0,20.849,20.833,23.79391567]
[1680443444592,10.0,20.849,20.835,10.0]
[1680443444801,10.0,20.849,20.836,6.79293747]
[1680443446912,17.0,20.852,20.836,6.79293747]
[1680443447121,17.0,20.852,20.838,10.0]
[1680443447316,17.0,20.852,20.839,6.79195955]
[1680443448221,10.0,20.851,20.839,6.79195955]
[1680443450628,17.0,20.85,20.839,6.79195955]
[1680443450809,10.0,20.849,20.839,6.79195955]
[1680443451126,10.0,20.847,20.839,6.79195955]
[1680443453813,10.0,20.851,20.839,6.79195955]
[1680443454022,16.78,20.859,20.839,6.79195955]
[1680443454218,16.78,20.859,20.839,13.96413149]
[1680443454415,16.78,20.859,20.84,6.79163364]
[1680443468327,10.0,20.851,20.84,6.79163364]
[1680443468528,10.0,20.849,20.84,6.79163364]
[1680443469136,16.78,20.859,20.84,6.79163364]
[1680443471743,10.0,20.851,20.84,6.79163364]
[1680443473324,10.0,20.849,20.84,6.79163364]
[1680443479826,10.0,20.847,20.84,6.79163364]
[1680443481433,10.0,20.845,20.84,6.79163364]
[1680443483235,10.0,20.843,20.84,6.79163364]
[1680443485855,10.0,20.845,20.84,6.79163364]
[1680443486040,10.0,20.843,20.84,6.79163364]
[1680443487942,10.0,20.841,20.84,6.79163364]
[1680443488347,27.0,20.841,20.84,6.79163364]
[1680443491258,17.0,20.841,20.84,6.79163364]
[1680443491561,17.0,20.841,20.829,10.0]
[1680443491761,10.0,20.841,20.83,6.79489415]
[1680443497557,17.0,20.842,20.83,6.79489415]
[1680443497747,10.0,20.843,20.83,6.79489415]
[1680443497950,10.0,20.841,20.83,6.79489415]
[1680443501164,10.0,20.843,20.83,6.79489415]
[1680443505965,118.1667,20.844,20.83,6.79489415]
[1680443506172,118.1667,20.844,20.83,13.96706609]
[1680443506355,118.1667,20.844,20.831,6.79456796]
[1680443512559,10.0,20.843,20.831,6.79456796]
[1680443519462,19.196992,20.854,20.831,6.79456796]
[1680443519662,116.2911,20.852,20.831,6.79456796]
[1680443520880,10.0,20.847,20.831,6.79456796]
[1680443525068,10.0,20.847,20.831,6.29456796]
[1680443525386,10.0,20.847,20.832,6.2942658]
[1680443528293,17.0,20.846,20.832,6.2942658]
[1680443528588,10.0,20.845,20.832,6.2942658]
[1680443528776,128.3124,20.845,20.832,6.2942658]
[1680443530285,246.9386,20.845,20.832,6.2942658]
[1680443536382,10.0,20.843,20.832,6.2942658]
[1680443538391,10.0,20.841,20.832,6.2942658]
[1680443541694,10.0,20.841,20.832,3.7942658]
[1680443544292,17.0,20.84,20.832,3.7942658]
[1680443544496,10.0,20.839,20.832,3.7942658]
[1680443548387,17.0,20.84,20.832,3.7942658]
[1680443549906,17.0,20.84,20.829,10.0]
[1680443550203,17.0,20.84,20.83,6.79057105]
[1680443553106,10.0,20.839,20.83,6.79057105]
[1680443554500,10.0,20.841,20.83,6.79057105]
[1680443567916,10.0,20.843,20.83,6.79057105]
[1680443579712,10.0,20.841,20.83,6.79057105]
[1680443590236,10.0,20.844,20.83,6.79057105]